[Event "FIDE Online Olympiad Top Division 2020"]
[Site "Online"]
[Date "2020.08.22"]
[Round "?"]
[White "Muetsch, Annmarie"]
[Black "Koridze, Lile"]
[Result "1-0"]
[ECO "B23"]
[WhiteElo "2259"]
[BlackElo "1991"]
[Annotator "ChessBase"]
[PlyCount "69"]
[EventDate "2020.08.21"]
[SourceTitle "playchess.com"]
[Source "ChessBase"]
[SourceQuality "1"]
[TimeControl "900+5"]

1. e4 {[%emt 0:00:01]} c5 {[%emt 0:00:04]} 2. Nc3 {[%emt 0:00:03]} Nc6 {[%emt 0:00:15]} 3. Bb5 {[%emt 0:00:03]} Nd4 {[%emt 0:00:08]} 4. Nf3 {[%emt 0:00:06]} Nxb5 {[%emt 0:01:08]} 5. Nxb5 {[%emt 0:00:02]} a6 {[%emt 0:00:02]} 6. Nc3 {[%emt 0:00:02]} d6 {[%emt 0:00:19]} 7. d4 {[%emt 0:00:08]} cxd4 {[%emt 0:01:49]} 8. Qxd4 {[%emt 0:00:00]} Nf6 {[%emt 0:00:16]} 9. O-O {[%emt 0:00:43]} e5 {[%emt 0:00:16]} 10. Qd3 {[%emt 0:00:02]} Be7 {[%emt 0:00:02]} 11. Bg5 {[%emt 0:00:19]} Be6 {[%emt 0:01:20]} 12. Rfd1 {[%emt 0:00:41]} Rc8 {[%emt 0:01:47]} 13. Bxf6 {[%emt 0:00:41]} gxf6 {[%emt 0:00:09]} 14. Nd5 {[%emt 0:01:03]} Rc6 {[%emt 0:00:26]} 15. Nh4 {[%emt 0:00:33]} Qc8 {[%emt 0:00:43]} 16. c3 {[%emt 0:01:22]} Rg8 {[%emt 0:01:28]} 17. Ne3 {[%emt 0:03:08]} b5 {[%emt 0:01:02]} 18. Nhf5 {[%emt 0:00:15]} Qd7 {[%emt 0:01:58]} 19. Qe2 {[%emt 0:00:41]} Rg5 {[%emt 0:00:35]} 20. h4 {[%emt 0:00:16]} Rxf5 {[%emt 0:00:38]} 21. exf5 {[%emt 0:00:07]} Bxf5 {[%emt 0:00:01]} 22. Nxf5 {[%emt 0:00:27]} Qxf5 {[%emt 0:00:01]} 23. a4 {[%emt 0:00:23]} b4 {[%emt 0:00:13]} 24. cxb4 {[%emt 0:00:07]} d5 {[%emt 0:01:27]} 25. b5 {[%emt 0:00:45]} Rc2 {[%emt 0:00:06]} 26. Rd2 {[%emt 0:00:07]} Rxd2 {[%emt 0:00:16]} 27. Qxd2 {[%emt 0:00:00]} Bc5 {[%emt 0:00:00]} 28. Rc1 {[%emt 0:00:43]} Bb6 {[%emt 0:00:32]} 29. a5 {[%emt 0:00:12]} Bd4 {[%emt 0:00:04]} 30. b6 {[%emt 0:00:06]} Qd7 {[%emt 0:00:03]} 31. Qc2 {[%emt 0:00:11]} Qb5 {[%emt 0:00:12]} 32. Qc6+ {[%emt 0:00:21]} Qxc6 {[%emt 0:00:02]} 33. Rxc6 {[%emt 0:00:00]} Kd7 {[%emt 0:00:01]} 34. b7 {[%emt 0:00:38]} Ba7 {[%emt 0:00:02]} 35. Rc8 {[%emt 0:00:02]} 1-0

[Event "FIDE Online Olympiad Top Division 2020"]
[Site "Online"]
[Date "2020.08.22"]
[Round "?"]
[White "Zhu, Jiner"]
[Black "Muetsch, Annmarie"]
[Result "1-0"]
[ECO "B33"]
[WhiteElo "2249"]
[BlackElo "2329"]
[Annotator "ChessBase"]
[PlyCount "95"]
[EventDate "2020.08.21"]
[SourceTitle "playchess.com"]
[Source "ChessBase"]
[SourceQuality "1"]
[TimeControl "900+5"]

1. e4 {[%emt 0:00:01]} c5 {[%emt 0:00:04]} 2. Nf3 {[%emt 0:00:04]} Nc6 {[%emt 0:00:02]} 3. d4 {[%emt 0:00:00]} cxd4 {[%emt 0:00:02]} 4. Nxd4 {[%emt 0:00:01]} e5 {[%emt 0:00:02]} 5. Nb5 {[%emt 0:00:01]} d6 {[%emt 0:00:01]} 6. N1c3 {[%emt 0:00:04]} a6 {[%emt 0:00:02]} 7. Na3 {[%emt 0:00:01]} b5 {[%emt 0:00:01]} 8. Nd5 {[%emt 0:00:02]} Nge7 {[%emt 0:00:01]} 9. Be3 {[%emt 0:00:07]} Nxd5 {[%emt 0:00:14]} 10. exd5 {[%emt 0:00:01]} Ne7 {[%emt 0:00:02]} 11. c4 {[%emt 0:00:01]} Nf5 {[%emt 0:00:08]} 12. Bd2 {[%emt 0:00:03]} g6 {[%emt 0:00:10]} 13. cxb5 {[%emt 0:00:08]} Bg7 {[%emt 0:00:02]} 14. Bc3 {[%emt 0:00:17]} O-O {[%emt 0:00:09]} 15. Be2 {[%emt 0:02:52]} Nh4 {[%emt 0:01:14]} 16. O-O {[%emt 0:01:15]} Qg5 {[%emt 0:01:03]} 17. g3 {[%emt 0:00:02]} Bh6 {[%emt 0:02:41]} 18. Nc4 {[%emt 0:02:25]} f5 {[%emt 0:03:14]} 19. f4 {[%emt 0:03:09]} Qd8 {[%emt 0:01:43]} 20. fxe5 {[%emt 0:01:13]} dxe5 {[%emt 0:01:24]} 21. gxh4 {[%emt 0:00:02]} Bb7 {[%emt 0:01:43]} 22. Bf3 {[%emt 0:01:11]} Qxh4 {[%emt 0:00:35]} 23. Nxe5 {[%emt 0:00:12]} Bf4 {[%emt 0:00:32]} 24. Qc2 {[%emt 0:00:09]} axb5 {[%emt 0:01:12]} 25. Qf2 {[%emt 0:00:26]} Qh6 {[%emt 0:00:09]} 26. Rfe1 {[%emt 0:00:23]} Rad8 {[%emt 0:00:08]} 27. Rad1 {[%emt 0:00:04]} Rfe8 {[%emt 0:00:02]} 28. Kh1 {[%emt 0:00:05]} b4 {[%emt 0:00:07]} 29. Bd4 {[%emt 0:00:06]} Bxd5 {[%emt 0:00:08]} 30. Bxd5+ {[%emt 0:00:01]} Rxd5 {[%emt 0:00:01]} 31. Ng4 {[%emt 0:01:42]} Rxe1+ {[%emt 0:00:20]} 32. Qxe1 {[%emt 0:00:01]} fxg4 {[%emt 0:00:09]} 33. Qe8+ {[%emt 0:00:12]} Qf8 {[%emt 0:00:02]} 34. Qxf8+ {[%emt 0:00:01]} Kxf8 {[%emt 0:00:02]} 35. Bg7+ {[%emt 0:00:03]} Kxg7 {[%emt 0:00:04]} 36. Rxd5 {[%emt 0:00:01]} Bc1 {[%emt 0:00:03]} 37. Rd4 {[%emt 0:00:03]} Bxb2 {[%emt 0:00:08]} 38. Rxb4 {[%emt 0:00:01]} Ba3 {[%emt 0:00:05]} 39. Rxg4 {[%emt 0:00:02]} Kf6 {[%emt 0:00:05]} 40. Ra4 {[%emt 0:00:08]} Bc5 {[%emt 0:00:03]} 41. Rc4 {[%emt 0:00:02]} Ba3 {[%emt 0:00:04]} 42. Rc3 {[%emt 0:00:01]} Bb4 {[%emt 0:00:02]} 43. Rb3 {[%emt 0:00:01]} Ba5 {[%emt 0:00:04]} 44. a4 {[%emt 0:00:05]} Ke6 {[%emt 0:00:03]} 45. Rh3 {[%emt 0:00:01]} h5 {[%emt 0:00:03]} 46. Rg3 {[%emt 0:00:01]} Kf6 {[%emt 0:00:05]} 47. Kg2 {[%emt 0:00:06]} g5 {[%emt 0:00:05]} 48. Rb3 {[%emt 0:00:02]} 1-0

[Event "FIDE Online Olympiad Top Division 2020"]
[Site "Online"]
[Date "2020.08.22"]
[Round "?"]
[White "Schachfine"]
[Black "ama18"]
[Result "0-1"]
[ECO "B23"]
[WhiteElo "2247"]
[BlackElo "2474"]
[Annotator "NA"]
[PlyCount "86"]
[EventDate "2020.08.21"]
[SourceTitle "playchess.com"]
[Source "ChessBase"]
[SourceQuality "1"]
[TimeControl "900+5"]

1. e4 {[%emt 0:00:01]} c5 {[%emt 0:00:02]} 2. Nc3 {[%emt 0:00:03]} d6 {[%emt 0:00:05]} 3. d4 {[%emt 0:00:03]} cxd4 {[%emt 0:00:17]} 4. Qxd4 {[%emt 0:00:00]} Nc6 {[%emt 0:00:03]} 5. Qd2 {[%emt 0:00:02]} g6 {[%emt 0:00:17]} 6. b3 {[%emt 0:00:07]} Bh6 {[%emt 0:01:05]} 7. f4 {[%emt 0:00:06]} Nf6 {[%emt 0:00:43]} 8. Bb2 {[%emt 0:00:12]} O-O {[%emt 0:01:43]} 9. O-O-O {[%emt 0:00:06]} e5 {[%emt 0:00:54]} 10. g3 {[%emt 0:00:07]} Nd4 {[%emt 0:02:06]} 11. Nge2 {[%emt 0:03:25]} Bg4 {[%emt 0:00:51]} 12. Nxd4 {[%emt 0:00:46]} Bxd1 {[%emt 0:00:27]} 13. Qxd1 {[%emt 0:00:05]} exd4 {[%emt 0:00:54]} 14. Qxd4 {[%emt 0:00:13]} Bg7 {[%emt 0:01:10]} 15. Bg2 {[%emt 0:05:13]} Re8 {[%emt 0:03:18]} 16. Nd5 {[%emt 0:02:03]} Nh5 {[%emt 0:00:05]} 17. Qb4 {[%emt 0:00:08]} a5 {[%emt 0:01:16]} 18. Qxb7 {[%emt 0:01:11]} Nf6 {[%emt 0:00:20]} 19. Nxf6+ {[%emt 0:02:00]} Bxf6 {[%emt 0:00:02]} 20. Rd1 {[%emt 0:00:13]} Bxb2+ {[%emt 0:00:10]} 21. Kxb2 {[%emt 0:00:00]} Qf6+ {[%emt 0:00:01]} 22. Kb1 {[%emt 0:00:09]} a4 {[%emt 0:00:20]} 23. Qd5 {[%emt 0:00:12]} axb3 {[%emt 0:00:29]} 24. cxb3 {[%emt 0:00:02]} Ra6 {[%emt 0:00:07]} 25. Qd4 {[%emt 0:00:12]} Qe7 {[%emt 0:00:02]} 26. h4 {[%emt 0:00:16]} Rea8 {[%emt 0:00:05]} 27. Rd2 {[%emt 0:00:01]} h5 {[%emt 0:00:02]} 28. Bf1 {[%emt 0:00:03]} Rc6 {[%emt 0:00:04]} 29. Bc4 {[%emt 0:00:03]} Rac8 {[%emt 0:00:05]} 30. Qd3 {[%emt 0:00:07]} Kg7 {[%emt 0:00:04]} 31. Qd4+ {[%emt 0:00:04]} Kg8 {[%emt 0:00:03]} 32. Qd5 {[%emt 0:00:02]} Kg7 {[%emt 0:00:06]} 33. a4 {[%emt 0:00:07]} Qc7 {[%emt 0:00:16]} 34. Qd4+ {[%emt 0:00:05]} Kg8 {[%emt 0:00:04]} 35. Ka2 {[%emt 0:00:04]} Rb8 {[%emt 0:00:06]} 36. Qd3 {[%emt 0:00:10]} Qa5 {[%emt 0:00:05]} 37. Qd5 {[%emt 0:00:05]} Qc7 {[%emt 0:00:02]} 38. f5 {[%emt 0:00:04]} Rc5 {[%emt 0:00:11]} 39. Qxd6 {[%emt 0:00:05]} Rxc4 {[%emt 0:00:02]} 40. bxc4 {[%emt 0:00:13]} Qxc4+ {[%emt 0:00:02]} 41. Ka1 {[%emt 0:00:02]} Qc3+ {[%emt 0:00:02]} 42. Ka2 {[%emt 0:00:04]} Qb3+ {[%emt 0:00:01]} 43. Ka1 {[%emt 0:00:02]} Qb1# {[%emt 0:00:00]} 0-1

[Event "FIDE Online Olympiad Top Division 2020"]
[Site "Online"]
[Date "2020.08.22"]
[Round "?"]
[White "Hoang, Thi Bao Tram"]
[Black "Schulze, Lara"]
[Result "0-1"]
[ECO "D02"]
[WhiteElo "2221"]
[BlackElo "2269"]
[Annotator "ChessBase"]
[PlyCount "118"]
[EventDate "2020.08.21"]
[SourceTitle "playchess.com"]
[Source "ChessBase"]
[SourceQuality "1"]
[TimeControl "900+5"]

1. d4 {[%emt 0:00:07]} Nf6 {[%emt 0:00:06]} 2. Nf3 {[%emt 0:00:06]} e6 {[%emt 0:00:02]} 3. Bf4 {[%emt 0:00:39]} d5 {[%emt 0:00:10]} 4. e3 {[%emt 0:00:03]} Bd6 {[%emt 0:00:10]} 5. Bg3 {[%emt 0:00:02]} O-O {[%emt 0:00:29]} 6. Nbd2 {[%emt 0:00:05]} c5 {[%emt 0:00:03]} 7. c3 {[%emt 0:00:06]} Qc7 {[%emt 0:00:06]} 8. Ne5 {[%emt 0:00:23]} Nfd7 {[%emt 0:00:41]} 9. Ndf3 {[%emt 0:01:25]} f6 {[%emt 0:02:33]} 10. Nxd7 {[%emt 0:01:44]} Nxd7 {[%emt 0:00:05]} 11. Be2 {[%emt 0:00:26]} b6 {[%emt 0:00:21]} 12. O-O {[%emt 0:00:15]} Bb7 {[%emt 0:00:02]} 13. c4 {[%emt 0:00:36]} Bxg3 {[%emt 0:01:19]} 14. hxg3 {[%emt 0:00:04]} Kh8 {[%emt 0:00:17]} 15. Rc1 {[%emt 0:00:54]} Rac8 {[%emt 0:02:14]} 16. cxd5 {[%emt 0:02:11]} Bxd5 {[%emt 0:00:23]} 17. Qa4 {[%emt 0:00:56]} Rfd8 {[%emt 0:01:51]} 18. Rfd1 {[%emt 0:01:31]} Qb8 {[%emt 0:00:48]} 19. Bb5 {[%emt 0:00:36]} Nf8 {[%emt 0:00:44]} 20. dxc5 {[%emt 0:01:00]} Rxc5 {[%emt 0:00:34]} 21. Rxc5 {[%emt 0:00:35]} bxc5 {[%emt 0:00:02]} 22. e4 {[%emt 0:00:23]} Bb7 {[%emt 0:01:25]} 23. Rxd8 {[%emt 0:00:03]} Qxd8 {[%emt 0:00:00]} 24. Qxa7 {[%emt 0:00:06]} Bxe4 {[%emt 0:00:47]} 25. Qxc5 {[%emt 0:00:03]} Qd1+ {[%emt 0:00:14]} 26. Kh2 {[%emt 0:00:03]} Kg8 {[%emt 0:00:04]} 27. Qe3 {[%emt 0:00:39]} Qb1 {[%emt 0:00:34]} 28. Nd4 {[%emt 0:00:28]} Bd5 {[%emt 0:00:08]} 29. a4 {[%emt 0:00:51]} Qxb2 {[%emt 0:00:02]} 30. Ne2 {[%emt 0:00:05]} Qb4 {[%emt 0:00:18]} 31. Nf4 {[%emt 0:00:07]} Bb3 {[%emt 0:00:08]} 32. Nd3 {[%emt 0:00:07]} Qc3 {[%emt 0:00:37]} 33. Qc5 {[%emt 0:00:05]} Qa5 {[%emt 0:00:09]} 34. Nb4 {[%emt 0:00:10]} Bxa4 {[%emt 0:00:05]} 35. Nc6 {[%emt 0:00:42]} Qxb5 {[%emt 0:00:03]} 36. Ne7+ {[%emt 0:00:02]} Kf7 {[%emt 0:00:01]} 37. Qc7 {[%emt 0:00:09]} Qd7 {[%emt 0:00:04]} 38. Qa5 {[%emt 0:00:10]} Kxe7 {[%emt 0:00:04]} 39. Qc5+ {[%emt 0:00:02]} Kf7 {[%emt 0:00:01]} 40. Qh5+ {[%emt 0:00:01]} g6 {[%emt 0:00:02]} 41. Qh6 {[%emt 0:00:03]} Bc6 {[%emt 0:00:06]} 42. Qe3 {[%emt 0:00:04]} Qd5 {[%emt 0:00:07]} 43. f3 {[%emt 0:00:01]} Nd7 {[%emt 0:00:07]} 44. Qf4 {[%emt 0:00:11]} Qh5+ {[%emt 0:00:07]} 45. Kg1 {[%emt 0:00:02]} Qc5+ {[%emt 0:00:06]} 46. Kh2 {[%emt 0:00:01]} Qe5 {[%emt 0:00:06]} 47. Qd2 {[%emt 0:00:14]} Nf8 {[%emt 0:00:11]} 48. Qc1 {[%emt 0:00:05]} Qd5 {[%emt 0:00:03]} 49. Qa3 {[%emt 0:00:06]} h5 {[%emt 0:00:04]} 50. Qa7+ {[%emt 0:00:03]} Qd7 {[%emt 0:00:02]} 51. Qe3 {[%emt 0:00:01]} Qd6 {[%emt 0:00:05]} 52. Kh3 {[%emt 0:00:03]} Bd7 {[%emt 0:00:06]} 53. Qc3 {[%emt 0:00:12]} e5+ {[%emt 0:00:03]} 54. Kh2 {[%emt 0:00:01]} Ne6 {[%emt 0:00:07]} 55. Qc1 {[%emt 0:00:07]} Ng5 {[%emt 0:00:03]} 56. Qc4+ {[%emt 0:00:03]} Kg7 {[%emt 0:00:04]} 57. Kg1 {[%emt 0:00:14]} Qd1+ {[%emt 0:00:06]} 58. Kh2 {[%emt 0:00:01]} Qd2 {[%emt 0:00:08]} 59. Kg1 {[%emt 0:00:06]} Qd4+ {[%emt 0:00:02]} 0-1

[Event "FIDE Online Olympiad Top Division 2020"]
[Site "Online"]
[Date "2020.08.22"]
[Round "?"]
[White "Vogel, Roven"]
[Black "Nguyen, Anh Khoi"]
[Result "1-0"]
[ECO "E14"]
[WhiteElo "2217"]
[BlackElo "2547"]
[Annotator "RC"]
[PlyCount "117"]
[EventDate "2020.08.21"]
[SourceTitle "playchess.com"]
[Source "ChessBase"]
[SourceQuality "1"]
[TimeControl "900+5"]

1. d4 {[%emt 0:00:03]} Nf6 {[%emt 0:00:03]} 2. c4 {[%emt 0:00:02]} e6 {[%emt 0:00:02]} 3. Nf3 {[%emt 0:00:02]} b6 {[%emt 0:00:02]} 4. e3 {[%emt 0:00:02]} Bb7 {[%emt 0:00:04]} 5. Bd3 {[%emt 0:00:01]} d5 {[%emt 0:00:02]} 6. O-O {[%emt 0:00:04]} Bd6 {[%emt 0:01:11]} 7. b3 {[%emt 0:00:07]} O-O {[%emt 0:00:05]} 8. Nc3 {[%emt 0:00:20]} a6 {[%emt 0:00:17]} 9. Bb2 {[%emt 0:00:25]} Nbd7 {[%emt 0:00:09]} 10. Rc1 {[%emt 0:01:41]} Ne4 {[%emt 0:02:10]} 11. a4 {[%emt 0:01:56]} c5 {[%emt 0:03:31]} 12. cxd5 {[%emt 0:00:21]} exd5 {[%emt 0:00:03]} 13. dxc5 {[%emt 0:00:06]} Ndxc5 {[%emt 0:00:34]} 14. Bb1 {[%emt 0:00:25]} Rc8 {[%emt 0:00:44]} 15. Ne2 {[%emt 0:00:16]} a5 {[%emt 0:00:47]} 16. Nf4 {[%emt 0:01:03]} Re8 {[%emt 0:00:58]} 17. Nh5 {[%emt 0:01:31]} Bf8 {[%emt 0:00:28]} 18. Bd3 {[%emt 0:00:39]} Nxd3 {[%emt 0:00:13]} 19. Qxd3 {[%emt 0:00:03]} Nc5 {[%emt 0:00:09]} 20. Qf5 {[%emt 0:00:02]} Ne4 {[%emt 0:01:18]} 21. Bxg7 {[%emt 0:02:58]} Rxc1 {[%emt 0:01:40]} 22. Nf6+ {[%emt 0:01:04]} Kxg7 {[%emt 0:01:06]} 23. Nxe8+ {[%emt 0:00:02]} Qxe8 {[%emt 0:00:01]} 24. Rxc1 {[%emt 0:00:00]} Bd6 {[%emt 0:00:31]} 25. Nd4 {[%emt 0:00:14]} Qe5 {[%emt 0:00:22]} 26. Qg4+ {[%emt 0:00:09]} Kf8 {[%emt 0:00:02]} 27. g3 {[%emt 0:00:05]} h5 {[%emt 0:00:05]} 28. Qd7 {[%emt 0:00:02]} Nc5 {[%emt 0:00:24]} 29. Qd8+ {[%emt 0:00:03]} Kg7 {[%emt 0:00:02]} 30. Qxd6 {[%emt 0:00:05]} Qxd6 {[%emt 0:00:03]} 31. Nf5+ {[%emt 0:00:01]} Kf6 {[%emt 0:00:01]} 32. Nxd6 {[%emt 0:00:00]} Ba6 {[%emt 0:00:01]} 33. Rc3 {[%emt 0:00:06]} Ke6 {[%emt 0:00:07]} 34. Nb5 {[%emt 0:00:05]} Kd7 {[%emt 0:00:08]} 35. Nd4 {[%emt 0:00:05]} Bd3 {[%emt 0:00:07]} 36. f3 {[%emt 0:00:05]} Bg6 {[%emt 0:00:03]} 37. h3 {[%emt 0:00:10]} Kd6 {[%emt 0:00:05]} 38. Kf2 {[%emt 0:00:09]} Nd3+ {[%emt 0:00:11]} 39. Ke2 {[%emt 0:00:05]} Nc5 {[%emt 0:00:01]} 40. g4 {[%emt 0:00:11]} hxg4 {[%emt 0:00:02]} 41. hxg4 {[%emt 0:00:00]} f6 {[%emt 0:00:03]} 42. Rc1 {[%emt 0:00:05]} Bd3+ {[%emt 0:00:04]} 43. Kd2 {[%emt 0:00:05]} Ba6 {[%emt 0:00:14]} 44. Rh1 {[%emt 0:00:02]} Nd7 {[%emt 0:00:05]} 45. Rh8 {[%emt 0:00:07]} Bf1 {[%emt 0:00:02]} 46. Rc8 {[%emt 0:00:18]} Ne5 {[%emt 0:00:11]} 47. Re8 {[%emt 0:00:03]} Nd7 {[%emt 0:00:04]} 48. Re6+ {[%emt 0:00:02]} Kc7 {[%emt 0:00:04]} 49. Kc3 {[%emt 0:00:09]} Ba6 {[%emt 0:00:04]} 50. Kc2 {[%emt 0:00:14]} Bf1 {[%emt 0:00:04]} 51. Kb2 {[%emt 0:00:08]} Bd3 {[%emt 0:00:04]} 52. Ka3 {[%emt 0:00:11]} Bf1 {[%emt 0:00:02]} 53. Nb5+ {[%emt 0:00:36]} Kd8 {[%emt 0:00:11]} 54. Rd6 {[%emt 0:00:06]} Bg2 {[%emt 0:00:04]} 55. Nd4 {[%emt 0:00:03]} Kc7 {[%emt 0:00:03]} 56. Rxd5 {[%emt 0:00:03]} Ne5 {[%emt 0:00:02]} 57. g5 {[%emt 0:00:06]} Nxf3 {[%emt 0:00:02]} 58. Nxf3 {[%emt 0:00:06]} Bxf3 {[%emt 0:00:01]} 59. Rf5 {[%emt 0:00:02]} 1-0

[Event "FIDE Online Olympiad Top Division 2020"]
[Site "Online"]
[Date "2020.08.24"]
[Round "?"]
[White "Schneider, Jana"]
[Black "Mawire, Rumbidzai"]
[Result "1-0"]
[ECO "B42"]
[WhiteElo "2199"]
[BlackElo "1280"]
[Annotator "ChessBase"]
[PlyCount "57"]
[EventDate "2020.08.21"]
[TimeControl "900+5"]

1. e4 {[%emt 0:00:04]} c5 {[%emt 0:00:09]} 2. Nf3 {[%emt 0:00:04]} e6 {[%emt 0:00:05]} 3. d4 {[%emt 0:00:02]} cxd4 {[%emt 0:00:21]} 4. Nxd4 {[%emt 0:00:02]} a6 {[%emt 0:00:03]} 5. Bd3 {[%emt 0:00:06]} Qc7 {[%emt 0:00:07]} 6. O-O {[%emt 0:00:18]} Nf6 {[%emt 0:00:08]} 7. Qe2 {[%emt 0:00:08]} d6 {[%emt 0:00:14]} 8. c4 {[%emt 0:00:06]} Be7 {[%emt 0:00:09]} 9. Nc3 {[%emt 0:00:03]} O-O {[%emt 0:00:06]} 10. Bd2 {[%emt 0:00:26]} Nbd7 {[%emt 0:00:06]} 11. b3 {[%emt 0:00:41]} b6 {[%emt 0:00:59]} 12. Rae1 {[%emt 0:00:40]} Bb7 {[%emt 0:00:27]} 13. Kh1 {[%emt 0:00:07]} Nc5 {[%emt 0:01:49]} 14. Bb1 {[%emt 0:00:20]} e5 {[%emt 0:02:22]} 15. Nf5 {[%emt 0:00:15]} Bc8 {[%emt 0:00:27]} 16. Nxe7+ {[%emt 0:00:27]} Qxe7 {[%emt 0:00:10]} 17. Bg5 {[%emt 0:00:04]} Qe6 {[%emt 0:01:15]} 18. Rd1 {[%emt 0:02:05]} Bb7 {[%emt 0:01:19]} 19. Rd2 {[%emt 0:01:06]} Rad8 {[%emt 0:00:46]} 20. Rfd1 {[%emt 0:00:49]} Rd7 {[%emt 0:00:52]} 21. b4 {[%emt 0:00:07]} Ncxe4 {[%emt 0:01:21]} 22. Nxe4 {[%emt 0:00:04]} Ne8 {[%emt 0:00:46]} 23. Be3 {[%emt 0:01:02]} Qg6 {[%emt 0:00:43]} 24. Ng3 {[%emt 0:00:22]} Qe6 {[%emt 0:00:47]} 25. Bf5 {[%emt 0:00:06]} Qe7 {[%emt 0:00:40]} 26. Bxd7 {[%emt 0:00:10]} Qxd7 {[%emt 0:00:06]} 27. f3 {[%emt 0:00:08]} f5 {[%emt 0:00:10]} 28. Bxb6 {[%emt 0:00:06]} Qc6 {[%emt 0:00:34]} 29. c5 {[%emt 0:00:11]} 1-0

[Event "FIDE Online Olympiad Top Division 2020"]
[Site "Online"]
[Date "2020.08.21"]
[Round "?"]
[White "Chimegdee"]
[Black "Schachfine"]
[Result "0-1"]
[ECO "A17"]
[WhiteElo "2185"]
[BlackElo "2288"]
[Annotator "RC"]
[PlyCount "112"]
[EventDate "2020.08.21"]
[SourceTitle "playchess.com"]
[Source "ChessBase"]
[SourceQuality "1"]
[TimeControl "900+5"]

1. Nf3 {[%emt 0:00:03]} Nf6 {[%emt 0:00:05]} 2. c4 {[%emt 0:00:03]} e6 {[%emt 0:00:02]} 3. Nc3 {[%emt 0:00:03]} Bb4 {[%emt 0:00:02]} 4. Qc2 {[%emt 0:00:04]} O-O {[%emt 0:00:14]} 5. a3 {[%emt 0:00:15]} Bxc3 {[%emt 0:00:02]} 6. Qxc3 {[%emt 0:00:02]} d6 {[%emt 0:00:07]} 7. e3 {[%emt 0:00:02]} e5 {[%emt 0:00:36]} 8. d3 {[%emt 0:00:36]} Nbd7 {[%emt 0:00:44]} 9. b4 {[%emt 0:00:23]} a5 {[%emt 0:00:12]} 10. Bb2 {[%emt 0:00:28]} Nb6 {[%emt 0:00:10]} 11. Qc2 {[%emt 0:00:28]} Bd7 {[%emt 0:00:05]} 12. b5 {[%emt 0:02:11]} c6 {[%emt 0:01:40]} 13. bxc6 {[%emt 0:01:41]} Bxc6 {[%emt 0:00:14]} 14. Be2 {[%emt 0:00:32]} Na4 {[%emt 0:00:38]} 15. O-O {[%emt 0:00:27]} Nxb2 {[%emt 0:00:47]} 16. Qxb2 {[%emt 0:00:00]} Rb8 {[%emt 0:01:02]} 17. Rfc1 {[%emt 0:01:10]} Nd7 {[%emt 0:01:13]} 18. d4 {[%emt 0:00:51]} Re8 {[%emt 0:02:09]} 19. Qc2 {[%emt 0:01:50]} exd4 {[%emt 0:01:49]} 20. Nxd4 {[%emt 0:00:59]} Be4 {[%emt 0:00:06]} 21. Qd2 {[%emt 0:00:03]} Ne5 {[%emt 0:00:51]} 22. f3 {[%emt 0:00:57]} Bc6 {[%emt 0:00:53]} 23. c5 {[%emt 0:00:04]} d5 {[%emt 0:00:55]} 24. Rab1 {[%emt 0:00:08]} Nd7 {[%emt 0:00:14]} 25. Bb5 {[%emt 0:01:05]} Qc7 {[%emt 0:01:23]} 26. Bd3 {[%emt 0:01:11]} Ne5 {[%emt 0:00:06]} 27. Rb6 {[%emt 0:00:14]} Rbc8 {[%emt 0:00:32]} 28. Bf5 {[%emt 0:00:14]} Rcd8 {[%emt 0:00:04]} 29. Bd3 {[%emt 0:00:23]} g6 {[%emt 0:00:07]} 30. Rcb1 {[%emt 0:00:03]} a4 {[%emt 0:00:11]} 31. Bf1 {[%emt 0:00:14]} Nd7 {[%emt 0:00:07]} 32. Nxc6 {[%emt 0:00:08]} bxc6 {[%emt 0:00:01]} 33. Qd4 {[%emt 0:00:41]} Nxb6 {[%emt 0:00:03]} 34. cxb6 {[%emt 0:00:00]} Qb7 {[%emt 0:00:04]} 35. Qxa4 {[%emt 0:00:02]} Ra8 {[%emt 0:00:02]} 36. Qb3 {[%emt 0:00:02]} c5 {[%emt 0:00:09]} 37. Kf2 {[%emt 0:00:05]} Re6 {[%emt 0:00:05]} 38. a4 {[%emt 0:00:05]} d4 {[%emt 0:00:13]} 39. exd4 {[%emt 0:00:03]} cxd4 {[%emt 0:00:00]} 40. Bc4 {[%emt 0:00:02]} Re3 {[%emt 0:00:05]} 41. Qb5 {[%emt 0:00:08]} Qe7 {[%emt 0:00:06]} 42. b7 {[%emt 0:00:04]} Rb8 {[%emt 0:00:05]} 43. Qc6 {[%emt 0:00:11]} Qh4+ {[%emt 0:00:05]} 44. Kf1 {[%emt 0:00:02]} Qxh2 {[%emt 0:00:05]} 45. Qc8+ {[%emt 0:00:17]} Kg7 {[%emt 0:00:02]} 46. Qd7 {[%emt 0:00:03]} Qh1+ {[%emt 0:00:05]} 47. Kf2 {[%emt 0:00:01]} Qxb1 {[%emt 0:00:09]} 48. Qxf7+ {[%emt 0:00:02]} Kh6 {[%emt 0:00:01]} 49. Qf4+ {[%emt 0:00:01]} g5 {[%emt 0:00:08]} 50. Qf6+ {[%emt 0:00:03]} Qg6 {[%emt 0:00:02]} 51. Qxd4 {[%emt 0:00:03]} Re7 {[%emt 0:00:04]} 52. Bd5 {[%emt 0:00:05]} Rexb7 {[%emt 0:00:11]} 53. Be4 {[%emt 0:00:10]} Rb2+ {[%emt 0:00:04]} 54. Kg3 {[%emt 0:00:02]} Qb6 {[%emt 0:00:10]} 55. Qd7 {[%emt 0:00:20]} Qf2+ {[%emt 0:00:03]} 56. Kg4 {[%emt 0:00:05]} Qxg2+ {[%emt 0:00:02]} 0-1